Cogmind - Beta 15 @@@ ROGUE MODE // 2025.05.23 @ 03:53:09 Player: Lillith Result: Self-destructed Performance ------------- Evolutions (3) 1500 Regions Visited (6) 1200 Robots Destroyed (54) 270 Value Destroyed (1339) 1339 Prototype IDs (27) 540 Alien Tech Used (0) 0 Bonus (321) 321 TOTAL SCORE: 5170 Bonus ------- Follower Combat Kills 21 Aligned with FarCom 300 Cogmind --------- Core Integrity 289/700 Matter 23/300 Energy 100/100 System Corruption 3% Temperature Cool (18) Movement Core (1350) Ox26 Location -7/Factory Parts ------- > --- POWER (1) -------- (None) > --- PROPULSION (4) --- (None) > --- UTILITY (5) ------ Huge Storage Unit 0b10 Alert Chip > --- WEAPON (3) ------- (None) > --- INVENTORY (25) --- Light Deuterium Engine Light Nuclear Core Light Nuclear Core Light Treads Aerolev Unit Gravmag System Gravmag System Gravmag System Combat Airjet Large Storage Unit Structural Scanner Improved Sensor Array Improved Sensor Array Reaction Control System Medium Armor Plating Medium Laser Assault Cannon Assault Cannon Gauss Cannon Rocket Launcher Rocket Launcher Improved Datajack Great Maul Greatsword Peak State ------------ > --- POWER ------------ Light Nuclear Core > --- PROPULSION ------- Light Treads Light Treads Improved Treads Armored Treads > --- UTILITY ---------- Huge Storage Unit Seismic Detector 0b10 Alert Chip Medium Armor Plating Hacking Suite > --- WEAPON ----------- Assault Rifle Assault Rifle Great Maul > --- INVENTORY -------- Light Deuterium Engine Light Nuclear Core Light Nuclear Core Aerolev Unit Gravmag System Gravmag System Gravmag System Combat Airjet Large Storage Unit Structural Scanner Improved Sensor Array Improved Sensor Array Reaction Control System Medium Armor Plating Medium Armor Plating Hardened Light Armor Plating Medium Laser Assault Cannon Assault Cannon Gauss Cannon Rocket Launcher Rocket Launcher Improved Datajack Greatsword [Rating: 35] Favorites ----------- Power Ion Engine Engine Ion Engine Power Core Light Nuclear Core Propulsion Light Treads Treads Light Treads Wheel Wheel Hover Unit Aerolev Unit Utility Huge Storage Unit Device Seismic Detector Storage Huge Storage Unit Processor 0b10 Alert Chip Hackware Hacking Suite Protection Hardened Light Armor Plating Weapon Assault Rifle Energy Gun Medium Laser Ballistic Gun Assault Rifle Ballistic Cannon Assault Cannon Launcher Rocket Launcher Impact Weapon Great Maul Build | -11 -10 -10 -10 -9 -8 -7 ------- Run | Yrd Mat Min Exi Min Mat Fac Slots Evolved 6 | . . . . . 4 2 Power . | . . . . . . . Propulsion 2 | . . . . . 1 1 Utility 3 | . . . . . 2 1 Weapon 1 | . . . . . 1 . Parts Attached 34 | 7 9 . 1 2 4 11 Power 5 | 1 1 . . 1 1 1 Engine 4 | 1 1 . . 1 1 . Core 1 | . . . . . . 1 Reactor . | . . . . . . . Propulsion 9 | 2 2 . . . 1 4 Treads 6 | 2 . . . . . 4 Leg . | . . . . . . . Wheel 2 | . 2 . . . . . Hover 1 | . . . . . 1 . Flight . | . . . . . . . Utility 12 | 2 4 . 1 . 1 4 Device 1 | 1 . . . . . . Storage 5 | 1 3 . 1 . . . Processor 1 | . . . . . 1 . Hackware 1 | . . . . . . 1 Protection 4 | . 1 . . . . 3 Artifact . | . . . . . . . Weapon 8 | 2 2 . . 1 1 2 Energy Gun 1 | 1 . . . . . . Energy Cannon . | . . . . . . . Ballistic Gun 3 | 1 1 . . 1 . . Ballistic Cannon 2 | . . . . . . 2 Launcher 1 | . 1 . . . . . Special Weapon . | . . . . . . . Impact Weapon 1 | . . . . . 1 . Slashing Weapon . | . . . . . . . Piercing Weapon . | . . . . . . . Special Melee Weapon . | . . . . . . . Unidentified Prototypes 1 | . . . . . 1 . Parts Lost 17 | . . . . 3 . 14 Power 2 | . . . . 1 . 1 Propulsion 6 | . . . . 1 . 5 Utility 6 | . . . . . . 6 Weapon 3 | . . . . 1 . 2 Highest Loss Streak 11 | . . . . 2 . 11 To Critical Strikes . | . . . . . . . Average Backups 16 | 3 9 15 16 15 19 23 Power 1 | . 1 1 1 . . 2 Propulsion 3 | 1 2 3 3 2 5 5 Utility 6 | . 2 6 7 7 6 7 Weapon 5 | . 3 5 5 4 6 6 Tool/Special . | . . . . . . . Unused Backups 26 | . 4 1 . . 1 20 Power 2 | . . . . . . 2 Propulsion 5 | . . . . . . 5 Utility 11 | . 3 1 . . . 7 Weapon 7 | . 1 . . . 1 5 Tool/Special 1 | . . . . . . 1 Average Slot Usage (%) 99 | . 100 100 100 98 99 97 Engine 10 | . 14 14 14 13 9 3 Treads 16 | . 23 17 14 13 9 19 Wheel 11 | . 4 10 13 14 17 9 Device 6 | . 13 4 . . 8 6 Storage 11 | . 14 14 14 14 9 7 Processor 3 | . . . . . 9 7 Hackware 1 | . . . . . . 4 Protection 8 | . . 9 14 14 9 9 Energy Gun 9 | . 13 14 14 14 5 2 Ballistic Gun 13 | . 13 14 14 8 17 14 Launcher 1 | . . . . 5 . . Impact Weapon 1 | . . . . . 3 3 Peak Build Rating 35 | 7 9 10 11 12 27 35 Average Rating 17 | 5 8 9 10 11 24 31 On Entrance 10 | . 7 9 10 11 11 27 Naked Turns . | . . . . . . . Heaviest Build 106 | 13 94 94 94 96 99 106 Greatest Support 83 | 40 40 40 10 10 26 83 Greatest Overweight (x) 28 | 1 3 9 9 9 9 28 Average Overweight (x) 4 | . . 6 9 9 3 2 Largest Inventory Capacity 25 | 8 25 25 25 25 25 25 Average Capacity 21 | 7 12 22 24 25 25 25 Most Carried 25 | 5 15 17 19 17 25 25 Average Carried 17 | 3 9 15 17 16 20 24 Final Capacity 25 | 8 15 25 25 25 25 25 Final Carried 25 | 5 15 17 17 16 25 25 Class Distribution -------------------- 79% | Mutant 17% | Skirmisher Dominant Class ---------------- Mutant | -10/Materials Mutant | -10/Mines Mutant | -10/Exiles Mutant | -9/Mines Skirmisher | -8/Materials Mutant | -7/Factory Resources | -11 -10 -10 -10 -9 -8 -7 ----------- Run | Yrd Mat Min Exi Min Mat Fac Matter Collected 1378 | 291 351 162 . 171 142 261 Remotely . | . . . . . . . Salvage Created 1432 | 146 485 112 . 21 194 474 Parts 104 | 10 36 10 . 2 5 41 Haulers Intercepted 2 | . 1 . . . 1 . Recyclers Shooed . | . . . . . . . Parts Field Recycled . | . . . . . . . Retrieved Matter . | . . . . . . . Parts Self-Destructed . | . . . . . . . Prevented . | . . . . . . . Kills | -11 -10 -10 -10 -9 -8 -7 ------- Run | Yrd Mat Min Exi Min Mat Fac Combat Hostiles Destroyed 40 | . 16 2 . 8 3 11 Guns 17 | . 6 2 . 1 3 5 Cannons 3 | . . . . . . 3 AOE 20 | . 10 . . 7 . 3 Classes Destroyed 13 | 2 6 . . 1 1 3 Worker 6 | . 3 . . 1 . 2 Builder 2 | . . . . . . 2 Tunneler 4 | 3 . 1 . . . . Hauler 2 | . 1 . . . 1 . Recycler 1 | 1 . . . . . . Mechanic 1 | . 1 . . . . . Watcher 3 | . 3 . . . . . Swarmer 12 | . 6 . . 3 . 3 Grunt 18 | . 10 2 . . 2 4 Duelist 1 | . . . . . 1 . Sentry 1 | . . . . . . 1 Programmer 3 | . . . . . . 3 Assembled 5 | . . . . 5 . . Best Kill Streak 6 | 2 6 2 . 5 3 6 Combat Bots Only 4 | . 3 2 . 4 3 3 Max Kills in Single Turn 4 | 1 3 1 . 2 1 4 Gunslinging . | . . . . . . . Exploded 3 | . 2 . . 2 . 3 Melee . | . . . . . . . Uniques/NPCs Destroyed . | . . . . . . . Combat | -11 -10 -10 -10 -9 -8 -7 -------- Run | Yrd Mat Min Exi Min Mat Fac Hostile Shots Fired 279 | . 55 12 . 15 1 196 Missed 73 | . 18 4 . 3 . 48 Hits 206 | . 37 8 . 12 1 148 Projectile 206 | . 37 8 . 12 1 148 Critical Strikes 5 | . . . . . . 5 Damage Taken 2862 | . 400 117 . 194 20 2131 Core 506 | . 50 31 . 14 . 411 Absorbed by Shields . | . . . . . . . Core Remaining (%) 87 | 100 . . . 62 100 . Volleys Fired 122 | 7 49 8 . 13 7 38 Largest 3 | 2 2 2 . 2 3 3 Hottest 94 | 70 70 70 . 70 90 94 Shots Fired 265 | 14 89 16 . 17 21 108 Gun 223 | 14 80 16 . 8 21 84 Cannon 23 | . . . . . . 23 Launcher 19 | . 9 . . 9 . 1 Special . | . . . . . . . Kinetic 161 | 7 40 8 . 4 14 88 Thermal 85 | 7 40 8 . 4 7 19 Explosive 19 | . 9 . . 9 . 1 Electromagnetic . | . . . . . . . Robot Hit Streak 14 | 6 10 4 . 4 11 14 Robot Miss Streak 5 | 2 5 1 . 4 2 4 Penetration Max . | . . . . . . . Secondary Targets 1 | . . . . . 1 . Max Gunslinging Chain 1 | . . . . . 1 . Shots Hit Robots 154 | 8 56 10 . 7 15 58 Core Hits 93 | 5 33 6 . 13 6 30 Critical Kills . | . . . . . . . Critical Parts Destroyed . | . . . . . . . Critical Strikes 5 | 1 2 1 . . . 1 Burn 5 | 1 2 1 . . . 1 Melee Attacks 35 | . . . . . 13 22 Impact 35 | . . . . . 13 22 Slashing . | . . . . . . . Piercing . | . . . . . . . Sneak Attacks 1 | . . . . . 1 . Combat Hostiles . | . . . . . . . Follow-up Attacks . | . . . . . . . Damage Inflicted 4204 | 101 1545 155 . 685 298 1420 Guns 1807 | 101 659 133 . 38 183 693 Cannons 329 | . . . . . . 329 Explosions 1923 | . 886 . . 639 . 398 Melee 101 | . . . . . 101 . Ramming 44 | . . 22 . 8 14 . Kinetic 1475 | 50 390 54 . 25 118 838 Thermal 803 | 51 269 79 . 13 65 326 Explosive 1781 | . 886 . . 639 . 256 Electromagnetic . | . . . . . . . Impact 101 | . . . . . 101 . Slashing . | . . . . . . . Piercing . | . . . . . . . Highest Corruption 3 | . . . . . . 3 Average Corruption 1 | . . . . . . 1 Corruption Purged . | . . . . . . . Corruption Blocked . | . . . . . . . Effects 12 | . . . . . . 12 Message Errors 5 | . . . . . . 5 Matter Fused 3 | . . . . . . 3 Heat Flow Errors 2 | . . . . . . 2 Data Loss (minor) 1 | . . . . . . 1 Alerts 1 | . . . . . . 1 Overload Shots . | . . . . . . . Overflow Damage 216 | . 77 . . 55 79 5 Projectiles . | . . . . . . . Explosions 137 | . 77 . . 55 . 5 Melee 79 | . . . . . 79 . Knockbacks 5 | . . . . . . 5 Impact . | . . . . . . . Kinetic 5 | . . . . . . 5 Secondary . | . . . . . . . Self-Inflicted Damage 60 | . . 11 . 42 7 . Shots 1 | . . . . 1 . . Rammed 3 | . . 1 . 1 1 . Targets Rammed 3 | . . 1 . 1 1 . Kicked . | . . . . . . . Crushed . | . . . . . . . Highest Temperature 511 | 36 168 180 . 96 100 511 Average Temperature 75 | 17 54 82 . 35 51 111 Received Heat Transfer 1329 | . 204 63 . . 9 1053 Effects 4 | . . . . . . 4 Shutdowns 1 | . . . . . . 1 Matter Decay 3 | . . . . . . 3 Siege Activations . | . . . . . . . Martial Activations . | . . . . . . . Shielding Activations . | . . . . . . . Robots Disrupted . | . . . . . . . Combat Hostiles . | . . . . . . . Robots Corrupted 1 | . . . . . 1 . Combat Hostiles . | . . . . . . . Parts Fried . | . . . . . . . Impact Corruptions 2 | . . . . . 2 . Robots Melted . | . . . . . . . Combat Hostiles . | . . . . . . . Parts Melted 5 | 1 1 . . . 2 1 Heat Transferred 2320 | 222 925 296 . 37 185 655 Parts Sabotaged . | . . . . . . . Parts Stolen . | . . . . . . . Parts Stripped . | . . . . . . . Power Chain Reactions . | . . . . . . . Alert | -11 -10 -10 -10 -9 -8 -7 ------- Run | Yrd Mat Min Exi Min Mat Fac Maximum Alert Level 1 | . 1 . . . . . Low Security (%) 93 | 100 72 100 . 100 100 100 Level 1 6 | . 27 . . . . . Level 2 . | . . . . . . . Level 3 . | . . . . . . . Level 4 . | . . . . . . . Level 5 . | . . . . . . . High Security . | . . . . . . . Max Security . | . . . . . . . Peak Influence 243 | 10 243 73 . 100 92 125 Initial 73 | . . 73 . . . . Average 40 | 1 127 18 . 13 15 12 Influence Increases 1313 | 20 560 55 . 134 204 340 Destroy 0b10 Robot/C 692 | . 320 40 . 60 96 176 Destroy 0b10 Robot/NC 90 | 20 40 5 . 5 4 16 Destroy Leader 172 | . 78 10 . 10 18 56 Allied During Kill 13 | . . . . . 13 . Successful Hack 32 | . 20 . . . 12 . Select Force Hacks 30 | . 30 . . . . . Disable Machine 60 | . . . . . 36 24 Destroy Structure 200 | . 72 . . 59 13 56 Lose Combat Pursuer 24 | . . . . . 12 12 Influence Decreases 1297 | 20 371 244 . 134 203 325 Entered New Map 117 | . . 116 . . . 1 Time Decay 990 | 20 371 128 . 124 143 204 Lost Part 130 | . . . . 10 . 120 Lost Ally 60 | . . . . . 60 . Squads Dispatched 8 | . 5 . . . . 3 Investigation 2 | . 2 . . . . . Extermination 2 | . . . . . . 2 Reinforcement 4 | . 3 . . . . 1 Assault . | . . . . . . . Garrison . | . . . . . . . Intercept . | . . . . . . . Searches Triggered . | . . . . . . . Construction Impeded . | . . . . . . . Haulers Reinforced . | . . . . . . . Active Scanning Responses . | . . . . . . . Cargo Convoy Interrupts . | . . . . . . . Stealth | -11 -10 -10 -10 -9 -8 -7 --------- Run | Yrd Mat Min Exi Min Mat Fac Distress Signals 9 | . 3 . . . 1 5 Communications Jammed . | . . . . . . . Distress Signals . | . . . . . . . Times Spotted 77 | . 26 2 . 10 8 31 Peak Tracking Total 10 | . 5 2 . 4 4 10 Tactical Retreats 4 | . . . . 2 1 1 Traps | -11 -10 -10 -10 -9 -8 -7 ------- Run | Yrd Mat Min Exi Min Mat Fac Traps Triggered . | . . . . . . . Indirectly . | . . . . . . . Trap Hack Attempts . | . . . . . . . Triggered . | . . . . . . . Disarmed . | . . . . . . . Reprogrammed . | . . . . . . . Reused . | . . . . . . . Traps Extracted . | . . . . . . . Installed . | . . . . . . . Triggered . | . . . . . . . Machines | -11 -10 -10 -10 -9 -8 -7 ---------- Run | Yrd Mat Min Exi Min Mat Fac Machines Disabled 6 | . 1 . . . 3 2 Max in Single Turn 2 | . 1 . . . . 2 Garrison Access 2 | . . . . . 1 1 Machines Repaired . | . . . . . . . Machines Dismantled . | . . . . . . . Machines Sabotaged . | . . . . . . . Overloaded Fab Kills . | . . . . . . . Hacking | -11 -10 -10 -10 -9 -8 -7 --------- Run | Yrd Mat Min Exi Min Mat Fac Machines Accessed 18 | . 6 . 2 . 7 3 Terminals 12 | . 5 . . . 5 2 Fabricators . | . . . . . . . Repair Stations . | . . . . . . . Recycling Units 1 | . 1 . . . . . Scanalyzers 1 | . . . . . 1 . Garrison Access 2 | . . . . . 1 1 Total Hacks 47 | . 24 . 2 . 17 4 Successful 22 | . 11 . 2 . 6 3 Failed 25 | . 13 . . . 11 1 Catastrophic 5 | . . . . . 4 1 Database Lockouts . | . . . . . . . Manual 17 | . 13 . 1 . 2 1 Terminals 39 | . 23 . . . 13 3 Fabricators . | . . . . . . . Repair Stations . | . . . . . . . Recycling Units 1 | . 1 . . . . . Scanalyzers 2 | . . . . . 2 . Garrison Access 3 | . . . . . 2 1 Terminal Hacks 14 | . 7 . 2 . 3 2 Record 3 | . . . 1 . . 2 Robot Analysis 4 | . 4 . . . . . Prototype ID Bank 2 | . 1 . . . 1 . Locate Traps 3 | . 2 . . . 1 . Zone Layout 1 | . . . . . 1 . Proto ID Catalog 1 | . . . 1 . . . Fabricator Hacks . | . . . . . . . Repair Station Hacks . | . . . . . . . Recycling Unit Hacks . | . . . . . . . Scanalyzer 2 | . . . . . 2 . Insert Component 1 | . . . . . 1 . Analyze 1 | . . . . . 1 . Garrison Access Hacks 2 | . . . . . 1 1 Seal Access 2 | . . . . . 1 1 Unauthorized Hacks 4 | . 4 . . . . . Terminals 3 | . 3 . . . . . Assimilate 1 | . 1 . . . . . Botnet 1 | . 1 . . . . . Skim 1 | . 1 . . . . . Fabricators . | . . . . . . . Repair Stations . | . . . . . . . Recycling Units 1 | . 1 . . . . . Tunnel 1 | . 1 . . . . . Scanalyzers . | . . . . . . . Garrison Access . | . . . . . . . Data Cores Recovered . | . . . . . . . Used . | . . . . . . . Hacking Detections 13 | . 5 . . . 6 2 Full Trace Events 1 | . 1 . . . . . Feedback Events . | . . . . . . . Feedback Blocked . | . . . . . . . Robot Schematics Acquired . | . . . . . . . Robots Built . | . . . . . . . Authchips . | . . . . . . . Time . | . . . . . . . Total Robot Build Rating . | . . . . . . . Part Schematics Acquired 1 | . . . . . 1 . Parts Built . | . . . . . . . Authchips . | . . . . . . . Time . | . . . . . . . Total Part Build Rating . | . . . . . . . Parts Repaired . | . . . . . . . Time . | . . . . . . . Parts Recycled . | . . . . . . . Recycled Matter . | . . . . . . . Retrieved Matter . | . . . . . . . Retrieved Components . | . . . . . . . Parts Scanalyzed 1 | . . . . . 1 . Part Schematics Acquired 1 | . . . . . 1 . Parts Damaged . | . . . . . . . Bothacking | -11 -10 -10 -10 -9 -8 -7 ------------ Run | Yrd Mat Min Exi Min Mat Fac Used RIF Installer . | . . . . . . . Robots Hacked . | . . . . . . . Non-combat . | . . . . . . . Combat . | . . . . . . . Robot Hacks Applied . | . . . . . . . Relay Couplers Released . | . . . . . . . Fabnet Peak Effective % . | . . . . . . . Robots Rewired . | . . . . . . . Allies Hacked . | . . . . . . . Hacks Repelled . | . . . . . . . Allies | -11 -10 -10 -10 -9 -8 -7 -------- Run | Yrd Mat Min Exi Min Mat Fac Total Allies 3 | . . . . 3 . . Largest Group 3 | . . . . 3 3 . Highest-Rated Group 40 | . . . . 40 40 . Highest-Rated Ally 16 | . . . . 16 16 . Total Orders . | . . . . . . . Ally Attacks 40 | . . . . . 40 . Total Damage 332 | . . . . . 332 . Kills 3 | . . . . . 3 . Allies Corrupted . | . . . . . . . Allies Melted . | . . . . . . . Intel | -11 -10 -10 -10 -9 -8 -7 ------- Run | Yrd Mat Min Exi Min Mat Fac Active Infowar (turns) 3530 | 38 1099 146 . . 929 1318 Seismic 3530 | 38 1099 146 . . 929 1318 Robot Analysis Total 4 | . 4 . . . . . Derelict Logs Recovered 1 | . . . . 1 . . Drone Launches . | . . . . . . . Drone Recoveries . | . . . . . . . Exploration | -11 -10 -10 -10 -9 -8 -7 ------------- Run | Yrd Mat Min Exi Min Mat Fac Turns Passed 5622 | 132 1156 461 751 845 930 1347 Spaces Moved 2780 | 66 610 217 346 367 577 597 Core 13 | 12 . . . . . 1 Treads 866 | 54 508 71 . . . 233 Legs . | . . . . . . . Wheels 1901 | . 102 146 346 367 577 363 Hover . | . . . . . . . Flight . | . . . . . . . Fastest Speed 50 | 50 135 160 215 215 135 135 Average Speed 175 | 146 155 196 215 215 135 185 Slowest Speed 1450 | 160 160 215 215 215 215 1450 Overloaded Moves . | . . . . . . . Propulsion Burnouts . | . . . . . . . Robots Hopped . | . . . . . . . Potential Cave-ins . | . . . . . . . Cave-ins Triggered . | . . . . . . . Exploration Rate (%) 48 | 5 84 45 76 61 53 15 Regions Visited 6 Branch Regions 3 Pre-discovered Areas 2 | . 1 . 1 . . . Known Exits Taken 1 | . . . . 1 . . Unknown Exits Taken 5 | 1 1 1 1 . 1 . Scrap Searched 3 | . . 2 . 1 . . Spaces Dug 53 | . 10 . . 9 12 22 Terrain Destroyed 228 | . 75 . . 87 12 54 Melee 34 | . . . . . 12 22 Projectile 1 | . . . . . . 1 AOE 193 | . 75 . . 87 . 31 Terrain Rammed . | . . . . . . . Walls Destroyed . | . . . . . . . Machines Disabled . | . . . . . . . Actions | -11 -10 -10 -10 -9 -8 -7 --------- Run | Yrd Mat Min Exi Min Mat Fac Total 3196 | 84 723 234 353 405 684 713 Wait 116 | . 19 3 . 19 61 14 Move 2774 | 65 609 216 345 366 576 597 Hop . | . . . . . . . Pick Up 48 | 5 14 2 2 2 13 10 Fast Attach 9 | 7 . . . . 1 1 Attach 15 | . . . . 3 4 8 Detach 5 | . . . . . 1 4 Swap 49 | . 24 3 4 1 5 12 Drop 20 | . 8 1 2 . 2 7 Fire 122 | 7 49 8 . 13 7 38 Melee 35 | . . . . . 13 22 Ram 3 | . . 1 . 1 1 . Kick . | . . . . . . . Crush . | . . . . . . . Escape Stasis . | . . . . . . . Rewire . | . . . . . . . Trap . | . . . . . . . Miscellaneous . | . . . . . . . Route ------- -11/Scrapyard -10/Materials (discovered 3 exits: [*Mat x2] / [*Min]) -10/Mines (discovered 2 exits: [*Mat] / *Exi) -10/Exiles -9/Mines (discovered 2 exits: *Mat x2) -8/Materials (discovered 2 exits: *Fac x2) -7/Factory (discovered 2 exits: [*Fac] / [*Low]) History --------- Turn | Location | Event 13 | -11/Scrapyard | Discovered new exit (range 15) 133 | -11/Scrapyard | Entered Materials 293 | -10/Materials | Discovered new exit (range 16) 312 | -10/Materials | Build established: Mutant 542 | -10/Materials | Discovered new exit (range 12) 896 | -10/Materials | Discovered new exit (range 10) 1289 | -10/Materials | Entered Mines 1397 | -10/Mines | Found a Scrap Suit stashed away for nefarious purposes 1407 | -10/Mines | Found Scrap Suit 1465 | -10/Mines | Discovered new exit (range 6) 1651 | -10/Mines | Deemed a non-threat by the Exiles lab entrance 1653 | -10/Mines | Discovered new exit (range 5) 1750 | -10/Mines | Entered Exiles 1802 | -10/Exiles | Met 8R-AWN 1839 | -10/Exiles | Met EX-HEX 1899 | -10/Exiles | Met EX-BIN 1940 | -10/Exiles | Aligned with FarCom system 1942 | -10/Exiles | Given EX-Vault access code 2006 | -10/Exiles | Opened EX-Vault 2028 | -10/Exiles | Found 0b10 Alert Chip 2068 | -10/Exiles | Warned to stay clear of 0b10 Research branches 2132 | -10/Exiles | Met EX-DEC 2181 | -10/Exiles | Learned location of Zion (-7) 2277 | -10/Exiles | Visited The Gauntlet 2484 | -10/Exiles | Discovered new exit (range 10) 2501 | -10/Exiles | Left Exiles lab with 0b10 Alert Chip 2501 | -10/Exiles | Entered Mines 2508 | -9/Mines | Received a Rocket Launcher from a helpful Derelict 2700 | -9/Mines | Assembled infested the area 2705 | -9/Mines | Assisted by a Guerilla fighting off Assembled 2734 | -9/Mines | Discovered new exit (range 15) 3125 | -9/Mines | Identified exit to Materials 3150 | -9/Mines | Assisted by bots powering up and referring to "LRC-V3" 3346 | -9/Mines | Entered Materials 3346 | -8/Materials | Accompanied by 3 allies 3346 | -8/Materials | Evolved 4 slots: Propulsion x1, Utility x2, Weapon x1 3654 | -8/Materials | Discovered new exit (range 16) 3791 | -8/Materials | Discovered new exit (range 20) 4276 | -8/Materials | Entered Factory 4276 | -7/Factory | Evolved 2 slots: Propulsion x1, Utility x1 5075 | -7/Factory | Discovered new exit (range 12) 5141 | -7/Factory | Discovered new exit (range 13) 5422 | -7/Factory | Build established: Skirmisher 5622 | -7/Factory | Core integrity fell below 50% 5623 | -7/Factory | Self-destructed Last Messages --------------- 05594_ U-05 Engineer lays Concrete. 05594_ U-05 Engineer builds a Wall. 05595_ U-05 Engineer lays Concrete. 05596_ K-01 Serf collects debris. 05596_ U-05 Engineer lays Concrete. 05599_ U-05 Engineer builds a Wall. 05600_ The unstable cave ceiling collapses. 05600_ K-01 Serf collects debris. 05600_ U-05 Engineer builds a Wall. 05601_ Med. Armor Plating destroyed. 05607_ Imp. Treads destroyed. 05609_ Acquired 4 matter. 05611_ Hacking Suite destroyed. 05613_ System corrupted: IFF burst signal emitted. 05613_ K-01 Serf collects debris. 05614_ G-47 Trooper suffers critical hit (Burn). 05615_ Critical hit (Burn: +37). 05617_ Hrd. Light Armor Plating destroyed. 05620_ Critical hit (Burn: +37). Map ----- +----------------------------------------------------+ | ?????????????????????????????????????????????????? | | ?????????????????????????????????????????????????? | | ?????????????????????????????????????????????????? | | ?????????????????????????????????????????????????? | | ?????????????????????????????????????????????????? | | ?????????????????????????????????????????????????? | | ?????????????????????????????????????????????????? | | ?????????????????????????????????????????????????? | | ?????????????????????????????????????????????????? | | ?????????????????????????????????????????????????? | | ??????????????????????? ????????????????????????? | | ??????????????????????? ????????????????????????? | | ??????????????????????? ???????? ??????????? | | ??????????????????????? ? ????? ??????????? | | ????????????############;#+##### #?????????? | | ?????????? #?????????? | | ?????????? # ????????? | | ????????? +?????????? | | ????????? ggg #?????????? | | ????????? ^ % #?????????? | | ????????? % % r#?????????? | | ????????? ?% #?????????? | | ??????? ######g##### #?????????? | | ??????? #" ## ########### | | ?????? " # | | ?????? "# ## @ | | ?????? % ggg | | ?????? # rrg | | ?????? # ;# | | ?????? # ########################## | | ?????? #; "#????????????????????????# | | ???????###??#; ##????????????????????????#+ | | ????????????#; #?????????????????????????# | | ????????????## #?????????????????????????# | | ?????????????# k ==! #?????????????????????????# | | ?????????????# ==! #?????????????????????????# | | ?????????????# =!! #?????????????????????????# | | ????????????## ! #?????????????????????????# | | ????????????## #?????????????????????????# | | ????????????## #?????????????????????????# | | ?????????????# #?????????????????????????# | | ????????????###########?????????????????????????# | | ????????????##?###??????????????????????????????#* | | ????????????????????????????????????????????????# | | ????????????????????????????????????????????????## | | ?????????????????????????????????????????????????? | | ?????????????????????????????????????????????????? | | ?????????????????????????????????????????????????? | | ?????????????????????????????????????????????????? | | ?????????????????????????????????????????????????? | +----------------------------------------------------+ Best States ------------- Heat Dissipation 34 Energy Generation 14 Energy Capacity 250 Matter Stores 300 Matter Capacity 300 Sight Range 16 Terrain Scan Density 10 Armor Coverage 375 Evasion (%) 40 Recoil Reduction 4 Offensive Hacking 10 Item Schematics ----------------- Cmb. Airjet | -8/Materials | Scanalyzed Robot Schematics ------------------ None Fabricated ------------ Nothing Repaired ---------- Nothing Alien Tech Used ----------------- None Achievements -------------- None Challenges ------------ None Game ------ Seed EnhancedCoilDiverter Manual? 0 Play Time 00:51:39 Cumulative 51.6 hours Start 2025.05.23 @ 02:57:58 End 2025.05.23 @ 03:53:09 Sessions 1 Manual Loads 0 Difficulty Rogue Special Mode None Game No. 89 Rogue 89 Adventurer 0 Explorer 0 Win Type - Total 0 Types 0/0/0/0/0/0/0/0/0/0 Lore% 44 Gallery% 32 Achievement% 30 Wizard Run 0 Options --------- Layout 2 ASCII 0 Keyboard 1 Movement Arrows Keybinds 0 Fullscreen 2 Font 32/SmallcapsGlow Map View 50x44 Zoom Use 0% Tactical HUD 1 Map Filters NONE Filters NONE Steam 1 RUN: e53d78b3-9687-4472-9de8-582a074af2b2